[Event "Late-Titled-Tuesday-Blitz-July-09-2024"]
[Site "Chess.com"]
[Date "2024.07.09"]
[Round "10"]
[White "zacachess"]
[Black "Korchmar_Vasiliy"]
[Result "0-1"]
[WhiteElo "2488"]
[BlackElo "2609"]
[TimeControl "180+1"]
[EndTime "15:54:10 PDT"]
[Termination "Korchmar_Vasiliy won on time"]

1. e4 {[%clk 0:03:00]} 1... c5 {[%clk 0:02:57.3]} 2. Nf3 {[%clk 0:02:59.7]} 2...
Nc6 {[%clk 0:02:55.7]} 3. d4 {[%clk 0:02:56.6]} 3... cxd4 {[%clk 0:02:56]} 4.
Nxd4 {[%clk 0:02:57.5]} 4... Nf6 {[%clk 0:02:56.6]} 5. Nc3 {[%clk 0:02:56.3]}
5... e5 {[%clk 0:02:57.2]} 6. Ndb5 {[%clk 0:02:56]} 6... d6 {[%clk 0:02:56.3]}
7. Bg5 {[%clk 0:02:49.8]} 7... a6 {[%clk 0:02:54.8]} 8. Na3 {[%clk 0:02:50]}
8... b5 {[%clk 0:02:55]} 9. Nd5 {[%clk 0:02:48.6]} 9... Be7 {[%clk 0:02:53.8]}
10. Bxf6 {[%clk 0:02:48.9]} 10... Bxf6 {[%clk 0:02:53]} 11. c4 {[%clk
0:02:49.2]} 11... b4 {[%clk 0:02:49.3]} 12. Nc2 {[%clk 0:02:49.5]} 12... O-O
{[%clk 0:02:50]} 13. h4 {[%clk 0:02:48.2]} 13... Rb8 {[%clk 0:02:31.3]} 14. b3
{[%clk 0:02:46.2]} 14... Be6 {[%clk 0:02:29.9]} 15. g3 {[%clk 0:02:45.6]} 15...
a5 {[%clk 0:02:26.6]} 16. Bh3 {[%clk 0:02:45]} 16... Bxd5 {[%clk 0:02:23.6]} 17.
cxd5 {[%clk 0:02:38.3]} 17... Nd4 {[%clk 0:02:14.5]} 18. O-O {[%clk 0:02:31.7]}
18... Nb5 {[%clk 0:02:02.1]} 19. Qd3 {[%clk 0:02:26.6]} 19... g6 {[%clk
0:01:58.5]} 20. a3 {[%clk 0:01:55]} 20... bxa3 {[%clk 0:01:57.1]} 21. Nxa3
{[%clk 0:01:55.9]} 21... Nd4 {[%clk 0:01:57.7]} 22. Rab1 {[%clk 0:01:40.3]}
22... Bg7 {[%clk 0:01:57.8]} 23. Nc2 {[%clk 0:01:39.5]} 23... Nb5 {[%clk
0:01:51.6]} 24. Rfc1 {[%clk 0:01:29.4]} 24... Bh6 {[%clk 0:01:44.7]} 25. Rf1
{[%clk 0:01:24.9]} 25... Qb6 {[%clk 0:01:42.9]} 26. Ne3 {[%clk 0:01:16]} 26...
Qd4 {[%clk 0:01:27.6]} 27. Qxd4 {[%clk 0:00:52.5]} 27... Nxd4 {[%clk 0:01:28.5]}
28. Nc4 {[%clk 0:00:50.2]} 28... Rb4 {[%clk 0:01:15.3]} 29. Nxa5 {[%clk
0:00:41]} 29... Nf3+ {[%clk 0:01:14.4]} 30. Kg2 {[%clk 0:00:37.3]} 30... Nd2
{[%clk 0:01:15.3]} 31. Nc6 {[%clk 0:00:36.8]} 31... Rb7 {[%clk 0:00:46.7]} 32.
b4 {[%clk 0:00:30.3]} 32... Nxf1 {[%clk 0:00:42]} 33. Kxf1 {[%clk 0:00:26.8]}
33... f5 {[%clk 0:00:38.7]} 34. exf5 {[%clk 0:00:23.6]} 34... gxf5 {[%clk
0:00:39.6]} 35. b5 {[%clk 0:00:18.4]} 35... f4 {[%clk 0:00:33.4]} 36. Be6+
{[%clk 0:00:17.3]} 36... Kh8 {[%clk 0:00:32.5]} 37. Kg2 {[%clk 0:00:16.4]} 37...
e4 {[%clk 0:00:28.7]} 38. Na5 {[%clk 0:00:08.5]} 38... Rg7 {[%clk 0:00:24.6]}
39. g4 {[%clk 0:00:04.5]} 39... f3+ {[%clk 0:00:23.9]} 40. Kf1 {[%clk
0:00:03.1]} 40... Bd2 {[%clk 0:00:20.5]} 41. Rd1 {[%clk 0:00:02.2]} 41... Bxa5
{[%clk 0:00:20.2]} 0-1

[Event "Late-Titled-Tuesday-Blitz-July-09-2024"]
[Site "Chess.com"]
[Date "2024.07.09"]
[Round "10"]
[White "rpragchess"]
[Black "temus_galaktionov"]
[Result "0-1"]
[WhiteElo "3078"]
[BlackElo "2856"]
[TimeControl "180+1"]
[EndTime "15:54:12 PDT"]
[Termination "temus_galaktionov won by resignation"]

1. d4 {[%clk 0:03:00.9]} 1... g6 {[%clk 0:02:50.7]} 2. e4 {[%clk 0:03:00.1]}
2... Bg7 {[%clk 0:02:51]} 3. Bc4 {[%clk 0:02:59.1]} 3... c6 {[%clk 0:02:50.5]}
4. Bb3 {[%clk 0:02:58.5]} 4... d5 {[%clk 0:02:46.5]} 5. e5 {[%clk 0:02:53.7]}
5... Bf5 {[%clk 0:02:45.3]} 6. Ne2 {[%clk 0:02:52.9]} 6... a5 {[%clk 0:02:39.9]}
7. a4 {[%clk 0:02:47.9]} 7... f6 {[%clk 0:02:32.3]} 8. Ng3 {[%clk 0:02:40]} 8...
Be6 {[%clk 0:02:28.3]} 9. exf6 {[%clk 0:02:35.2]} 9... exf6 {[%clk 0:02:26.5]}
10. O-O {[%clk 0:02:34.8]} 10... Ne7 {[%clk 0:02:22.2]} 11. Re1 {[%clk
0:02:35.7]} 11... Qd7 {[%clk 0:02:20.5]} 12. Qe2 {[%clk 0:02:30.1]} 12... Kf7
{[%clk 0:02:20.2]} 13. c4 {[%clk 0:02:25.8]} 13... Re8 {[%clk 0:02:17.5]} 14.
Nc3 {[%clk 0:02:25.9]} 14... Na6 {[%clk 0:02:15.3]} 15. Bd2 {[%clk 0:02:06.8]}
15... Nb4 {[%clk 0:02:08.6]} 16. cxd5 {[%clk 0:01:55.8]} 16... Nexd5 {[%clk
0:02:08.1]} 17. Nce4 {[%clk 0:01:55.2]} 17... b6 {[%clk 0:02:04.2]} 18. Bxb4
{[%clk 0:01:46.5]} 18... axb4 {[%clk 0:01:58.4]} 19. h3 {[%clk 0:01:45.9]} 19...
h6 {[%clk 0:01:57]} 20. Qf3 {[%clk 0:01:45.2]} 20... f5 {[%clk 0:01:54.8]} 21.
Nd2 {[%clk 0:01:41.4]} 21... Bxd4 {[%clk 0:01:48.4]} 22. Rad1 {[%clk 0:01:39.4]}
22... Bf6 {[%clk 0:01:31.3]} 23. Nc4 {[%clk 0:01:36.8]} 23... Qc7 {[%clk
0:01:28.6]} 24. Rc1 {[%clk 0:01:05.7]} 24... Kg7 {[%clk 0:01:24.6]} 25. Ne3
{[%clk 0:00:56.1]} 25... Qd6 {[%clk 0:01:08.6]} 26. Red1 {[%clk 0:00:39.3]}
26... Rad8 {[%clk 0:00:58.1]} 27. Rd2 {[%clk 0:00:23.9]} 27... Bg5 {[%clk
0:00:48]} 28. Re1 {[%clk 0:00:13.6]} 28... Qc5 {[%clk 0:00:30.7]} 29. Rc2 {[%clk
0:00:11]} 29... Qd6 {[%clk 0:00:23.7]} 30. Nc4 {[%clk 0:00:06.8]} 30... Qc7
{[%clk 0:00:19.6]} 31. Ne5 {[%clk 0:00:04.6]} 31... c5 {[%clk 0:00:18.5]} 32.
Rce2 {[%clk 0:00:03.4]} 32... Nf4 {[%clk 0:00:17.8]} 33. Bxe6 {[%clk 0:00:03.6]}
33... Rxe6 {[%clk 0:00:18]} 34. h4 {[%clk 0:00:02.7]} 34... Nxe2+ {[%clk
0:00:17.9]} 35. Rxe2 {[%clk 0:00:02.5]} 35... Rxe5 {[%clk 0:00:18.1]} 36. hxg5
{[%clk 0:00:03]} 36... hxg5 {[%clk 0:00:17.2]} 37. b3 {[%clk 0:00:02.3]} 37...
Rd7 {[%clk 0:00:16.4]} 38. Nf1 {[%clk 0:00:01.8]} 38... Rxe2 {[%clk 0:00:15.7]}
39. Qxe2 {[%clk 0:00:02.7]} 39... Qd6 {[%clk 0:00:16]} 40. g3 {[%clk 0:00:02.8]}
40... f4 {[%clk 0:00:14.8]} 41. Qe4 {[%clk 0:00:02.3]} 41... Qf6 {[%clk
0:00:14.3]} 42. Nh2 {[%clk 0:00:02.1]} 42... fxg3 {[%clk 0:00:12.9]} 43. fxg3
{[%clk 0:00:02.4]} 43... Re7 {[%clk 0:00:12.6]} 44. Qc6 {[%clk 0:00:01.6]} 44...
Qxc6 {[%clk 0:00:12.3]} 0-1

[Event "Late-Titled-Tuesday-Blitz-July-09-2024"]
[Site "Chess.com"]
[Date "2024.07.09"]
[Round "10"]
[White "GulamaliRises"]
[Black "Bkmzzzzz"]
[Result "1-0"]
[WhiteElo "2637"]
[BlackElo "2412"]
[TimeControl "180+1"]
[EndTime "15:54:12 PDT"]
[Termination "GulamaliRises won by checkmate"]

1. e4 {[%clk 0:03:00.9]} 1... d6 {[%clk 0:02:58.2]} 2. d4 {[%clk 0:03:00.8]}
2... Nf6 {[%clk 0:02:58.8]} 3. Nc3 {[%clk 0:03:01]} 3... e5 {[%clk 0:02:59.5]}
4. Nge2 {[%clk 0:02:57.5]} 4... Nbd7 {[%clk 0:02:59.1]} 5. g3 {[%clk 0:02:53.8]}
5... Be7 {[%clk 0:02:59]} 6. Bg2 {[%clk 0:02:54.4]} 6... O-O {[%clk 0:02:59.6]}
7. O-O {[%clk 0:02:54.4]} 7... c6 {[%clk 0:03:00.1]} 8. a4 {[%clk 0:02:51.5]}
8... b6 {[%clk 0:02:58.5]} 9. a5 {[%clk 0:02:39.6]} 9... b5 {[%clk 0:02:58]} 10.
d5 {[%clk 0:02:40]} 10... cxd5 {[%clk 0:02:53.6]} 11. exd5 {[%clk 0:02:32.8]}
11... a6 {[%clk 0:02:52.7]} 12. h3 {[%clk 0:02:24.9]} 12... Bb7 {[%clk
0:02:49.9]} 13. Be3 {[%clk 0:02:13.7]} 13... Rc8 {[%clk 0:02:47.4]} 14. Qd2
{[%clk 0:02:04.3]} 14... Ne8 {[%clk 0:02:33.2]} 15. g4 {[%clk 0:02:02]} 15... f5
{[%clk 0:02:31]} 16. gxf5 {[%clk 0:02:01.5]} 16... Rxf5 {[%clk 0:02:31.9]} 17.
f4 {[%clk 0:01:42.1]} 17... exf4 {[%clk 0:02:27.6]} 18. Bxf4 {[%clk 0:01:42.5]}
18... Bg5 {[%clk 0:02:10.6]} 19. Bxg5 {[%clk 0:01:21.5]} 19... Rxg5 {[%clk
0:02:05.3]} 20. Nf4 {[%clk 0:01:19.2]} 20... Nc7 {[%clk 0:02:01.5]} 21. Ne4
{[%clk 0:01:05.3]} 21... Ne5 {[%clk 0:01:12.3]} 22. Nxg5 {[%clk 0:00:56.7]}
22... Qxg5 {[%clk 0:01:13.2]} 23. Rad1 {[%clk 0:00:56.7]} 23... Qg3 {[%clk
0:01:00.7]} 24. Qf2 {[%clk 0:00:51.1]} 24... Qg5 {[%clk 0:00:58.6]} 25. Ne6
{[%clk 0:00:34.4]} 25... Nxe6 {[%clk 0:00:54.4]} 26. dxe6 {[%clk 0:00:35.3]}
26... h6 {[%clk 0:00:35]} 27. Kh1 {[%clk 0:00:29.6]} 27... Bxg2+ {[%clk
0:00:19.5]} 28. Qxg2 {[%clk 0:00:30.5]} 28... Qxg2+ {[%clk 0:00:19.7]} 29. Kxg2
{[%clk 0:00:28.5]} 29... Rxc2+ {[%clk 0:00:20.4]} 30. Kg3 {[%clk 0:00:22.9]}
30... Rc7 {[%clk 0:00:19.6]} 31. Rxd6 {[%clk 0:00:22.3]} 31... Re7 {[%clk
0:00:18.7]} 32. Rxa6 {[%clk 0:00:21.2]} 32... Nc4 {[%clk 0:00:18.6]} 33. Rf7
{[%clk 0:00:17.3]} 33... Re8 {[%clk 0:00:14.1]} 34. Raa7 {[%clk 0:00:17.2]}
34... Rxe6 {[%clk 0:00:14.2]} 35. Rxg7+ {[%clk 0:00:17.8]} 35... Kf8 {[%clk
0:00:14.8]} 36. Rh7 {[%clk 0:00:18.5]} 36... Rg6+ {[%clk 0:00:14.8]} 37. Kf4
{[%clk 0:00:19.1]} 37... Rf6+ {[%clk 0:00:14.7]} 38. Ke4 {[%clk 0:00:18]} 38...
Re6+ {[%clk 0:00:14.9]} 39. Kd5 {[%clk 0:00:18]} 39... Re5+ {[%clk 0:00:15.3]}
40. Kd4 {[%clk 0:00:18.6]} 40... Kg8 {[%clk 0:00:12.8]} 41. Rhg7+ {[%clk
0:00:17.9]} 41... Kf8 {[%clk 0:00:12.8]} 42. Rgb7 {[%clk 0:00:18.3]} 42... Re8
{[%clk 0:00:12.7]} 43. Rh7 {[%clk 0:00:17.9]} 43... Kg8 {[%clk 0:00:11.7]} 44.
Rag7+ {[%clk 0:00:17.9]} 44... Kf8 {[%clk 0:00:12.3]} 45. a6 {[%clk 0:00:18.8]}
45... Nxb2 {[%clk 0:00:10.7]} 46. a7 {[%clk 0:00:18.7]} 46... Na4 {[%clk
0:00:10.9]} 47. Rb7 {[%clk 0:00:17.9]} 47... Kg8 {[%clk 0:00:09.9]} 48. Rhg7+
{[%clk 0:00:18.4]} 48... Kh8 {[%clk 0:00:09.1]} 49. Rgf7 {[%clk 0:00:19.3]}
49... h5 {[%clk 0:00:09.1]} 50. Rfe7 {[%clk 0:00:20.2]} 50... Rd8+ {[%clk
0:00:08.8]} 51. Red7 {[%clk 0:00:20.6]} 51... Rc8 {[%clk 0:00:08.2]} 52. Rb8
{[%clk 0:00:21]} 52... Rxb8 {[%clk 0:00:07.3]} 53. axb8=Q# {[%clk 0:00:21]} 1-0

[Event "Late-Titled-Tuesday-Blitz-July-09-2024"]
[Site "Chess.com"]
[Date "2024.07.09"]
[Round "10"]
[White "IngOscarArdila"]
[Black "ritanovikova"]
[Result "0-1"]
[WhiteElo "2269"]
[BlackElo "2158"]
[TimeControl "180+1"]
[EndTime "15:54:16 PDT"]
[Termination "ritanovikova won on time"]

1. d4 {[%clk 0:02:36.6]} 1... e5 {[%clk 0:02:59.6]} 2. dxe5 {[%clk 0:00:57.8]}
2... Nc6 {[%clk 0:02:53.9]} 3. Nf3 {[%clk 0:00:57.4]} 3... Qe7 {[%clk
0:02:53.8]} 4. e3 {[%clk 0:00:57.3]} 4... Nxe5 {[%clk 0:02:53.6]} 5. Be2 {[%clk
0:00:56.6]} 5... Nxf3+ {[%clk 0:02:53.7]} 6. Bxf3 {[%clk 0:00:56.1]} 6... Nf6
{[%clk 0:02:54.1]} 7. O-O {[%clk 0:00:56.1]} 7... c6 {[%clk 0:02:54.5]} 8. c4
{[%clk 0:00:52.1]} 8... d6 {[%clk 0:02:53.8]} 9. Nc3 {[%clk 0:00:52.2]} 9... Be6
{[%clk 0:02:53.7]} 10. b3 {[%clk 0:00:50.6]} 10... Qc7 {[%clk 0:02:53.2]} 11.
Bb2 {[%clk 0:00:45.5]} 11... Be7 {[%clk 0:02:52.8]} 12. Qc2 {[%clk 0:00:44.9]}
12... O-O {[%clk 0:02:53.2]} 13. Rfd1 {[%clk 0:00:43.5]} 13... Rac8 {[%clk
0:02:52.5]} 14. e4 {[%clk 0:00:38.6]} 14... Nd7 {[%clk 0:02:51.5]} 15. Ne2
{[%clk 0:00:31.1]} 15... Bf6 {[%clk 0:02:51.1]} 16. Nd4 {[%clk 0:00:29.1]} 16...
a5 {[%clk 0:02:44.1]} 17. Nxe6 {[%clk 0:00:26.6]} 17... fxe6 {[%clk 0:02:44.9]}
18. Bg4 {[%clk 0:00:23.3]} 18... Nc5 {[%clk 0:02:42.7]} 19. Bxf6 {[%clk
0:00:18.3]} 19... Rxf6 {[%clk 0:02:42.7]} 20. a3 {[%clk 0:00:18.8]} 20... Rcf8
{[%clk 0:02:37.7]} 21. Rd2 {[%clk 0:00:19.1]} 21... Rf4 {[%clk 0:02:37]} 22. Bf3
{[%clk 0:00:18.7]} 22... e5 {[%clk 0:02:35.5]} 23. Rad1 {[%clk 0:00:18.1]} 23...
R8f6 {[%clk 0:02:27.6]} 24. b4 {[%clk 0:00:15]} 24... axb4 {[%clk 0:02:26.8]}
25. axb4 {[%clk 0:00:15.9]} 25... Ne6 {[%clk 0:02:07.5]} 26. Rxd6 {[%clk
0:00:15.4]} 26... Nd4 {[%clk 0:01:53]} 27. R6xd4 {[%clk 0:00:15.2]} 27... exd4
{[%clk 0:01:52.6]} 28. Rxd4 {[%clk 0:00:16.1]} 28... g6 {[%clk 0:01:48.3]} 29.
Qd3 {[%clk 0:00:16]} 29... Rf7 {[%clk 0:01:45.3]} 30. h3 {[%clk 0:00:15.6]}
30... Kg7 {[%clk 0:01:44.8]} 31. c5 {[%clk 0:00:15]} 31... Qe5 {[%clk
0:01:42.9]} 32. Rd6 {[%clk 0:00:13.5]} 32... Qg5 {[%clk 0:01:42]} 33. Kh2 {[%clk
0:00:12.6]} 33... h5 {[%clk 0:01:39.7]} 34. Qc3+ {[%clk 0:00:11.6]} 34... Kh6
{[%clk 0:01:37.1]} 35. e5 {[%clk 0:00:11.9]} 35... Qf5 {[%clk 0:01:33.9]} 36. e6
{[%clk 0:00:10.7]} 36... Re7 {[%clk 0:01:33]} 37. Qe3 {[%clk 0:00:09.6]} 37...
g5 {[%clk 0:01:26.7]} 38. Rd7 {[%clk 0:00:07.2]} 38... Qf6 {[%clk 0:01:23.7]}
39. Rxe7 {[%clk 0:00:06.4]} 39... Qxe7 {[%clk 0:01:23.8]} 40. Be2 {[%clk
0:00:03.4]} 40... Rf6 {[%clk 0:01:22.9]} 41. Bc4 {[%clk 0:00:03.2]} 41... h4
{[%clk 0:01:21.4]} 42. Qe5 {[%clk 0:00:03.3]} 42... Kh7 {[%clk 0:01:08.1]} 43.
Qd6 {[%clk 0:00:03.7]} 43... Qe8 {[%clk 0:00:59.1]} 44. Bd3+ {[%clk 0:00:03.8]}
44... Kg8 {[%clk 0:00:55.5]} 45. Bc4 {[%clk 0:00:03.9]} 45... Kg7 {[%clk
0:00:53.7]} 46. Qe5 {[%clk 0:00:03.9]} 46... Qe7 {[%clk 0:00:53.3]} 47. Qxg5+
{[%clk 0:00:03.9]} 47... Kf8 {[%clk 0:00:52]} 48. Qe5 {[%clk 0:00:03.8]} 48...
Rxf2 {[%clk 0:00:49.6]} 49. Qd6 {[%clk 0:00:03.4]} 49... Qxd6+ {[%clk
0:00:41.7]} 50. cxd6 {[%clk 0:00:03.4]} 50... Rd2 {[%clk 0:00:39.8]} 51. e7+
{[%clk 0:00:03.1]} 51... Ke8 {[%clk 0:00:40.4]} 0-1

[Event "Late-Titled-Tuesday-Blitz-July-09-2024"]
[Site "Chess.com"]
[Date "2024.07.09"]
[Round "10"]
[White "Gyulamiryan-koryun"]
[Black "Mariia89"]
[Result "0-1"]
[WhiteElo "1931"]
[BlackElo "2225"]
[TimeControl "180+1"]
[EndTime "15:54:20 PDT"]
[Termination "Mariia89 won on time"]

1. e4 {[%clk 0:02:53.5]} 1... c6 {[%clk 0:02:57.6]} 2. Nc3 {[%clk 0:02:52.4]}
2... d5 {[%clk 0:02:58.5]} 3. Nf3 {[%clk 0:02:51.3]} 3... dxe4 {[%clk
0:02:58.5]} 4. Nxe4 {[%clk 0:02:50.7]} 4... Nf6 {[%clk 0:02:59.4]} 5. Ng3 {[%clk
0:02:50.3]} 5... h5 {[%clk 0:03:00]} 6. h4 {[%clk 0:02:48.7]} 6... Bg4 {[%clk
0:02:59.8]} 7. Be2 {[%clk 0:02:48.7]} 7... e6 {[%clk 0:03:00]} 8. d4 {[%clk
0:02:47.8]} 8... Bd6 {[%clk 0:03:00.1]} 9. c3 {[%clk 0:02:47]} 9... Qc7 {[%clk
0:02:56.6]} 10. Nf1 {[%clk 0:02:34.4]} 10... Nbd7 {[%clk 0:02:51.7]} 11. Ne3
{[%clk 0:02:24.6]} 11... c5 {[%clk 0:02:49]} 12. Nc4 {[%clk 0:02:20.6]} 12...
Bf4 {[%clk 0:02:41.2]} 13. Nfe5 {[%clk 0:02:04.5]} 13... Bxe5 {[%clk 0:02:30.6]}
14. Nxe5 {[%clk 0:01:58.9]} 14... Nxe5 {[%clk 0:02:26.2]} 15. dxe5 {[%clk
0:01:55.8]} 15... Qxe5 {[%clk 0:02:23.4]} 16. Be3 {[%clk 0:01:55.7]} 16... O-O
{[%clk 0:02:09.6]} 17. O-O {[%clk 0:01:49.3]} 17... Rfd8 {[%clk 0:02:07.6]} 18.
Qe1 {[%clk 0:01:47.6]} 18... Bxe2 {[%clk 0:01:46.2]} 19. Qxe2 {[%clk 0:01:47]}
19... Ng4 {[%clk 0:01:46.6]} 20. g3 {[%clk 0:01:44.2]} 20... Nxe3 {[%clk
0:01:26.3]} 21. Qxe3 {[%clk 0:01:33.7]} 21... Qxe3 {[%clk 0:01:26.2]} 22. fxe3
{[%clk 0:01:33.9]} 22... Rd2 {[%clk 0:01:26.8]} 23. Rf2 {[%clk 0:01:32.7]} 23...
Rad8 {[%clk 0:01:25.4]} 24. Raf1 {[%clk 0:01:29.3]} 24... c4 {[%clk 0:01:14.7]}
25. Rxd2 {[%clk 0:01:12.5]} 25... Rxd2 {[%clk 0:01:14.4]} 26. Rf2 {[%clk
0:01:12.7]} 26... Rd3 {[%clk 0:01:05.6]} 27. Re2 {[%clk 0:01:11.2]} 27... e5
{[%clk 0:01:01]} 28. Kf2 {[%clk 0:01:11.8]} 28... e4 {[%clk 0:01:00.5]} 29. Re1
{[%clk 0:01:01]} 29... Kf8 {[%clk 0:00:55.8]} 30. Ke2 {[%clk 0:01:01.1]} 30...
Ke7 {[%clk 0:00:53.4]} 31. Rf1 {[%clk 0:00:59]} 31... Ke6 {[%clk 0:00:45.5]} 32.
a4 {[%clk 0:00:40.7]} 32... a6 {[%clk 0:00:25.5]} 33. Rb1 {[%clk 0:00:30.9]}
33... f6 {[%clk 0:00:20.8]} 34. Ra1 {[%clk 0:00:20.7]} 34... Kf5 {[%clk
0:00:20.1]} 35. Ra3 {[%clk 0:00:20.8]} 35... Kg4 {[%clk 0:00:18.5]} 36. b4
{[%clk 0:00:20.8]} 36... Kxg3 {[%clk 0:00:17.2]} 37. a5 {[%clk 0:00:15.9]} 37...
Kxh4 {[%clk 0:00:16.1]} 38. b5 {[%clk 0:00:03.9]} 38... axb5 {[%clk 0:00:17]}
39. a6 {[%clk 0:00:04.2]} 39... bxa6 {[%clk 0:00:17.2]} 40. Rxa6 {[%clk
0:00:04.3]} 40... Rd5 {[%clk 0:00:15.6]} 41. Re6 {[%clk 0:00:01.8]} 41... Re5
{[%clk 0:00:15.7]} 0-1

[Event "Late-Titled-Tuesday-Blitz-July-09-2024"]
[Site "Chess.com"]
[Date "2024.07.09"]
[Round "10"]
[White "Bilan_Danila"]
[Black "merinasian"]
[Result "0-1"]
[WhiteElo "2586"]
[BlackElo "2473"]
[TimeControl "180+1"]
[EndTime "15:54:24 PDT"]
[Termination "merinasian won by resignation"]

1. d4 {[%clk 0:03:00.9]} 1... d6 {[%clk 0:02:28.6]} 2. Nf3 {[%clk 0:02:57.3]}
2... Nd7 {[%clk 0:02:26.7]} 3. g3 {[%clk 0:02:54.1]} 3... g6 {[%clk 0:02:26.8]}
4. Bg2 {[%clk 0:02:54.6]} 4... Bg7 {[%clk 0:02:26.3]} 5. O-O {[%clk 0:02:55.5]}
5... e5 {[%clk 0:02:26.6]} 6. c4 {[%clk 0:02:56.4]} 6... Ne7 {[%clk 0:02:26.3]}
7. Nc3 {[%clk 0:02:56.3]} 7... O-O {[%clk 0:02:26.4]} 8. e4 {[%clk 0:02:52.9]}
8... exd4 {[%clk 0:02:26.5]} 9. Nxd4 {[%clk 0:02:52.5]} 9... Nc6 {[%clk
0:02:26.9]} 10. Be3 {[%clk 0:02:46.6]} 10... Nde5 {[%clk 0:02:26.8]} 11. b3
{[%clk 0:02:38.8]} 11... Ng4 {[%clk 0:02:22.7]} 12. Nxc6 {[%clk 0:02:14.5]}
12... Nxe3 {[%clk 0:02:21.9]} 13. fxe3 {[%clk 0:02:08.9]} 13... bxc6 {[%clk
0:02:21.7]} 14. Rc1 {[%clk 0:01:59]} 14... Qg5 {[%clk 0:02:19.5]} 15. Qd3 {[%clk
0:01:49.9]} 15... Be6 {[%clk 0:02:09.7]} 16. e5 {[%clk 0:01:44.4]} 16... Bxe5
{[%clk 0:02:01.4]} 17. Bxc6 {[%clk 0:01:42.5]} 17... Rae8 {[%clk 0:01:57]} 18.
Ne4 {[%clk 0:01:32.7]} 18... Qe7 {[%clk 0:01:34.6]} 19. Bxe8 {[%clk 0:01:27.7]}
19... Rxe8 {[%clk 0:01:34.2]} 20. Nc3 {[%clk 0:01:03.7]} 20... h5 {[%clk
0:01:22.2]} 21. Nd5 {[%clk 0:00:57.5]} 21... Qg5 {[%clk 0:01:22.2]} 22. Nf4
{[%clk 0:00:50]} 22... Bf5 {[%clk 0:01:20.6]} 23. e4 {[%clk 0:00:40.7]} 23...
Bg4 {[%clk 0:01:13.6]} 24. h4 {[%clk 0:00:30.9]} 24... Qd8 {[%clk 0:01:07.2]}
25. Kg2 {[%clk 0:00:25.3]} 25... Qc8 {[%clk 0:01:03.9]} 26. Rf2 {[%clk 0:00:23]}
26... c6 {[%clk 0:01:01.1]} 27. b4 {[%clk 0:00:20.5]} 27... Re7 {[%clk
0:00:57.5]} 28. Rcc2 {[%clk 0:00:18.8]} 28... Qe8 {[%clk 0:00:57.1]} 29. b5
{[%clk 0:00:17.7]} 29... Bg7 {[%clk 0:00:52]} 30. bxc6 {[%clk 0:00:13.5]} 30...
Rxe4 {[%clk 0:00:51.7]} 31. Nd5 {[%clk 0:00:13]} 31... Rd4 {[%clk 0:00:46.8]}
32. Qe3 {[%clk 0:00:11.5]} 32... Re4 {[%clk 0:00:42.8]} 33. Qd3 {[%clk
0:00:04.6]} 33... Bf5 {[%clk 0:00:33.3]} 34. Qf3 {[%clk 0:00:03.8]} 34... Qxc6
{[%clk 0:00:30.6]} 35. Ne3 {[%clk 0:00:03.9]} 35... Bg4 {[%clk 0:00:20.2]} 36.
Nxg4 {[%clk 0:00:03.9]} 36... hxg4 {[%clk 0:00:20.5]} 37. Qxe4 {[%clk
0:00:01.9]} 37... Qxe4+ {[%clk 0:00:18.8]} 38. Kh2 {[%clk 0:00:02.8]} 38... Be5
{[%clk 0:00:16.5]} 39. Rce2 {[%clk 0:00:01.8]} 39... Qd3 {[%clk 0:00:16]} 40.
Rg2 {[%clk 0:00:02.7]} 40... Qxc4 {[%clk 0:00:15.9]} 41. Rc2 {[%clk 0:00:03.4]}
41... Qd3 {[%clk 0:00:15.9]} 42. Rcd2 {[%clk 0:00:03.8]} 42... Qf3 {[%clk
0:00:16.1]} 43. Rb2 {[%clk 0:00:02.8]} 43... Bxb2 {[%clk 0:00:15.5]} 44. Rxb2
{[%clk 0:00:02]} 44... d5 {[%clk 0:00:15.6]} 45. Rb3 {[%clk 0:00:01.5]} 45...
Qe2+ {[%clk 0:00:14.9]} 46. Kh1 {[%clk 0:00:02.4]} 46... d4 {[%clk 0:00:15]} 47.
Rb1 {[%clk 0:00:01.1]} 47... d3 {[%clk 0:00:15]} 0-1